[Event "FIDE WCCC U10 2018"]
[Site "Santiago de Compostela"]
[Date "2018.11.04"]
[Round "1"]
[White "Calvo Gonzalez, Jose Felix"]
[Black "Kadam Om Manish"]
[Result "0-1"]
[ECO "D58"]
[WhiteElo "1524"]
[BlackElo "2025"]
[Annotator "NA RC"]
[PlyCount "116"]
[EventDate "2018.11.04"]
[EventType "swiss"]
[EventCountry "ESP"]
[SourceTitle "playchess.com"]
[Source "ChessBase"]
[SourceQuality "1"]
[TimeControl "40/5400+30:1800+30"]

{[%evp 9,116,22,32767,32767,32767,32767,32767,3,32767,26,32767,32767,37,32767,32767,32767,32767,32767,32767,32767,32767,32767,209,209,231,80,85,32767,97,74,149,95,90,32767,32767,32767,32767,32767,32767,-64,32767,32767,32767,32767,32767,32767,32767,32767,32767,-103,-65,-65,-72,-131,32767,0,0,-146,-158,-263,-303,-381,-423,-466,32767,-312,-450,-454,32767,-532,32767,-662,32767,32767,-428,32767,-487,-504,-602,-716,32767,32767,32767,32767,32767,32767,32767,32767,32767,32767,32767,-29980,-29983,-29980,-29981,-29981,-29982,32767,32767,-29984,-29983,32767,-29984,32767,32767,-29985,-29986,32767,-29987]} 1. c4 {[%emt 0:00:00]} e6 {[%emt 0:00:00]} 2. Nc3 {[%emt 0:00:00]} d5 {[%emt 0:00:00]} 3. d4 {[%emt 0:00:07]} Nf6 {[%emt 0:00:05]} 4. Bg5 {[%emt 0:00:36]} Be7 {[%emt 0:00:10]} 5. e3 {[%emt 0:01:07]} O-O {[%emt 0:00:13]} 6. Nf3 {[%emt 0:03:11]} h6 {[%emt 0:01:25]} 7. Bh4 {[%emt 0:00:47]} b6 {[%emt 0:00:29]} 8. cxd5 {[%emt 0:00:45]} exd5 {[%emt 0:00:14]} 9. Bd3 {[%emt 0:02:10]} Bb7 {[%emt 0:00:26]} 10. O-O {[%emt 0:01:31]} Nbd7 {[%emt 0:00:14] LiveBook: 76 Partien} 11. Rc1 {[%emt 0:12:00]} c5 {[%emt 0:00:41]} 12. Bb1 {[%emt 0:04:47]} Rc8 {[%emt 0:01:49]} 13. Ne5 {[%emt 0:02:21] D58: Queen's Gambit Declined: Tartakower Defence} Nxe5 {[%emt 0:07:36]} 14. dxe5 {[%emt 0:01:04]} Ne4 {[%emt 0:16:12]} 15. Nxd5 {[%emt 0:14:17] [#]} Ng5 $146 {[%emt 0:17:22]} ({Predecessor:} 15... Qxd5 $16 16. Qxd5 Bxd5 17. Bxe7 Rfe8 18. Bd6 Bc6 19. Rfd1 Re6 20. Bxe4 Bxe4 {½-½ (37) Maros,M (2368)-Stocek,J (2557) Slovakia 2012}) 16. Nxe7+ {[%emt 0:02:50]} ({Much less strong is} 16. Bxg5 hxg5 17. Be4 Bxd5) 16... Qxe7 {[%emt 0:00:03]} 17. Bg3 {[%emt 0:00:11]} (17. Qg4 $18 {is more deadly.}) 17... Rcd8 {[%emt 0:01:54]} 18. Qb3 {[%emt 0:06:16]} Bd5 {[%emt 0:02:32]} (18... Rd2 $11) 19. Qc3 {[%emt 0:07:00]} Qb7 {[%emt 0:00:13]} (19... Ne4 $142 20. Qc2 Bb7) 20. f3 {[%emt 0:06:34]} Bxf3 {[%emt 0:03:09]} 21. gxf3 {[%emt 0:06:59]} Nxf3+ {[%emt 0:00:05]} 22. Rxf3 {[%emt 0:04:04]} Qxf3 {[%emt 0:00:02]} 23. Rf1 {[%emt 0:05:29]} Rd1 {[%emt 0:00:09]} 24. Rxd1 {[%emt 0:00:45]} Qxd1+ {[%emt 0:00:01]} 25. Qe1 {[%emt 0:00:30]} Rd8 {[%emt 0:00:01]} 26. Be4 {[%emt 0:04:54]} Kf8 {[%emt 0:07:23]} 27. Qxd1 {[%emt 0:00:53]} Rxd1+ {[%emt 0:00:01]} 28. Kf2 {[%emt 0:00:04]} Rd2+ {[%emt 0:00:08]} 29. Ke1 {[%emt 0:02:54]} Rxb2 {[%emt 0:00:01]} 30. Bd5 $1 {[%emt 0:00:37]} Ke7 {[%emt 0:00:07]} 31. Kd1 {[%emt 0:01:03]} (31. h4 $15) 31... b5 {[%emt 0:00:17]} 32. Kc1 $1 {[%emt 0:01:27]} Re2 {[%emt 0:00:08]} 33. e4 {[%emt 0:01:55]} c4 {[%emt 0:00:14]} 34. Bc6 {[%emt 0:00:05]} (34. Bf4 $17) 34... a6 {[%emt 0:00:50]} ({Less strong is} 34... Rxa2 35. Bxb5 c3 36. Bc4 $15) 35. Kb1 {[%emt 0:00:26]} g5 {[%emt 0:01:00]} 36. Bb7 {[%emt 0:00:21]} h5 {[%emt 0:01:17]} 37. e6 {[%emt 0:00:46]} fxe6 {[%emt 0:07:47]} 38. Bxa6 {[%emt 0:00:31]} h4 {[%emt 0:00:14]} 39. Bb8 {[%emt 0:00:23]} c3 {[%emt 0:01:18]} 40. Be5 {[%emt 0:00:00]} Re1+ {[%emt 0:00:00]} 41. Kc2 {[%emt 0:01:22]} Rxe4 {[%emt 0:01:06]} 42. Bxc3 {[%emt 0:00:51]} Re2+ {[%emt 0:00:08]} 43. Bd2 {[%emt 0:00:07]} Rxh2 {[%emt 0:00:11]} 44. Bxb5 {[%emt 0:00:37]} g4 {[%emt 0:00:04]} 45. Kd1 {[%emt 0:00:20]} g3 {[%emt 0:00:19]} 46. Bf1 {[%emt 0:01:29]} g2 {[%emt 0:00:25]} 47. Bg5+ {[%emt 0:00:05]} Kf7 {[%emt 0:00:02]} 48. Bxg2 {[%emt 0:00:14]} Rxg2 {[%emt 0:00:01]} 49. Bxh4 {[%emt 0:00:12]} Rxa2 {[%emt 0:00:02]} 50. Be1 {[%emt 0:00:18]} Kf6 {[%emt 0:00:04]} 51. Kc1 {[%emt 0:00:20]} Ra1+ {[%emt 0:00:05]} 52. Kd2 {[%emt 0:00:06] [#]} Rxe1 $1 {[%emt 0:00:02]} 53. Kxe1 {[%emt 0:00:16]} Kf5 {[%emt 0:00:01]} 54. Kf2 {[%emt 0:00:13]} Kf4 {[%emt 0:00:00]} 55. Ke2 {[%emt 0:00:20]} Ke4 {[%emt 0:00:09]} 56. Kd2 {[%emt 0:00:05]} Kf3 {[%emt 0:00:02]} 57. Ke1 {[%emt 0:00:45]} e5 {[%emt 0:01:53]} 58. Kd2 {[%emt 0:00:12] [#]} e4 {[%emt 0:00:15]} 0-1

[Event "FIDE WCCC U10 2018"]
[Site "Santiago de Compostela"]
[Date "2018.11.04"]
[Round "1"]
[White "Brozynski, Patryk"]
[Black "Xiao, Tong(QD)"]
[Result "0-1"]
[ECO "B28"]
[WhiteElo "1510"]
[BlackElo "2022"]
[Annotator "NA"]
[PlyCount "92"]
[EventDate "2018.11.04"]
[EventType "swiss"]
[EventCountry "ESP"]
[SourceTitle "playchess.com"]
[Source "ChessBase"]
[SourceQuality "1"]
[TimeControl "40/5400+30:1800+30"]

1. e4 {[%emt 0:00:00]} c5 {[%emt 0:00:00]} 2. Nf3 {[%emt 0:00:10]} a6 {[%emt 0:00:15]} 3. d4 {[%emt 0:00:25]} cxd4 {[%emt 0:01:37]} 4. Nxd4 {[%emt 0:00:34]} Nf6 {[%emt 0:00:09]} 5. Nc3 {[%emt 0:04:07]} e5 {[%emt 0:01:13]} 6. Nf5 {[%emt 0:05:54]} (6. Nde2 $11) 6... d5 $1 {[%emt 0:00:44] LiveBook: 5 Games} 7. Ng3 {[%emt 0:03:19] [#]} d4 $1 {[%emt 0:01:09] B28: Sizilianisch (Frühes a7-a6)} (7... Bb4 8. Bd2 d4 9. Nb1 Qb6 10. Bd3 Bxd2+ 11. Nxd2 Qxb2 12. Rb1 Qc3 13. O-O Qc7 14. f4 Nc6 15. Nh5 Nxh5 16. Qxh5 exf4 {0-1 (32) Ljubic,J (2221)-Schweda,R (2416) Austria 2006}) 8. Nb1 {[%emt 0:04:23]} Be6 {[%emt 0:02:33]} 9. Be2 {[%emt 0:02:46]} Nbd7 {[%emt 0:00:40]} 10. a3 $146 {[%emt 0:04:03]} ({Vorgänger:} 10. Bg5 Be7 11. f3 O-O 12. Nd2 b5 13. h4 h6 14. Bxf6 Bxf6 15. h5 {0-1 (37) Duncovich,M (1757)-McLaughlin,E (1663) ICCF email 2007}) 10... Be7 {[%emt 0:00:43]} 11. O-O {[%emt 0:06:49]} Qb6 {[%emt 0:00:53]} 12. Kh1 {[%emt 0:02:34]} O-O {[%emt 0:01:30]} 13. Nd2 {[%emt 0:21:45]} Rac8 {[%emt 0:01:56]} 14. Nf5 {[%emt 0:20:02]} Rfe8 {[%emt 0:05:32]} 15. Nxe7+ {[%emt 0:03:03]} Rxe7 {[%emt 0:00:19]} 16. f3 {[%emt 0:00:42]} Qc6 {[%emt 0:03:18]} 17. Bd3 {[%emt 0:02:51]} Nc5 {[%emt 0:00:43]} 18. Re1 {[%emt 0:01:11]} Nh5 {[%emt 0:02:22]} 19. Nf1 {[%emt 0:00:50]} Nxd3 {[%emt 0:02:05]} 20. cxd3 {[%emt 0:00:23]} Qc2 {[%emt 0:01:40]} 21. Qxc2 {[%emt 0:01:29]} Rxc2 {[%emt 0:00:02]} 22. b4 {[%emt 0:00:06]} Rec7 {[%emt 0:00:52]} 23. Bg5 {[%emt 0:00:56]} R7c3 {[%emt 0:01:21]} 24. Red1 {[%emt 0:01:34]} h6 {[%emt 0:01:17]} 25. Be7 {[%emt 0:06:06]} (25. Bd2 $142 Rxd3 26. a4) 25... Nf4 {[%emt 0:00:18]} 26. g3 {[%emt 0:01:13]} Nxd3 {[%emt 0:00:29]} 27. Kg1 {[%emt 0:01:46]} Bh3 {[%emt 0:00:25]} 28. Rd2 {[%emt 0:01:02]} Rxd2 {[%emt 0:00:09]} 29. Nxd2 {[%emt 0:00:07]} Rc2 {[%emt 0:00:05]} 30. Nb3 {[%emt 0:00:49]} Rg2+ {[%emt 0:00:15]} 31. Kf1 {[%emt 0:00:06]} Rxh2+ {[%emt 0:00:17]} 32. Kg1 {[%emt 0:00:07]} Rg2+ {[%emt 0:00:05]} 33. Kf1 {[%emt 0:00:04]} Rb2+ {[%emt 0:00:09]} 34. Kg1 {[%emt 0:00:07]} Rxb3 {[%emt 0:00:05]} 35. Kh2 {[%emt 0:00:13]} Be6 {[%emt 0:00:09]} 36. a4 {[%emt 0:00:32]} Rb2+ {[%emt 0:00:07]} 37. Kg1 {[%emt 0:00:14]} Nxb4 {[%emt 0:00:06]} 38. Rc1 {[%emt 0:00:07]} Nc6 {[%emt 0:00:08]} 39. g4 {[%emt 0:00:09]} d3 {[%emt 0:00:04]} 40. Ba3 {[%emt 0:00:00]} Rc2 {[%emt 0:00:00]} 41. Rd1 {[%emt 0:00:36]} Bc4 {[%emt 0:00:23]} 42. Bc1 {[%emt 0:00:19]} Nd4 {[%emt 0:00:06]} 43. Be3 {[%emt 0:00:07]} Nxf3+ {[%emt 0:00:06]} 44. Kf1 {[%emt 0:00:11]} Rh2 {[%emt 0:00:08]} 45. Rc1 {[%emt 0:00:18]} d2+ {[%emt 0:00:05] Bxd2 [%clk 0:38:45]} 46. Rxc4 {[%emt 0:00:00]} d1=Q# {[%emt 0:00:00]} 0-1

[Event "FIDE WCCC U10 2018"]
[Site "Santiago de Compostela"]
[Date "2018.11.04"]
[Round "1"]
[White "Huang, Brian"]
[Black "Pingin, Artem"]
[Result "0-1"]
[ECO "B40"]
[WhiteElo "1503"]
[BlackElo "1981"]
[Annotator "NA RC"]
[PlyCount "156"]
[EventDate "2018.11.04"]
[EventType "swiss"]
[EventCountry "ESP"]
[SourceTitle "playchess.com"]
[Source "ChessBase"]
[SourceQuality "1"]
[TimeControl "40/5400+30:1800+30"]

{[%evp 8,136,6,8,32767,32767,15,32767,32767,25,32767,32767,32767,32767,32767,32767,32767,32767,32767,32767,32767,32767,32767,32767,32767,32767,21,32767,32767,32767,32767,32767,32767,32767,30,-31,-2,-19,0,32767,32767,-20,32767,32767,32767,32767,32767,-19,32767,-167,-158,-148,-129,-182,-102,-299,-195,32767,-203,-282,32767,32767,-198,-204,-208,-265,-193,-253,-220,-255,-153,-252,-236,-261,-256,-345,-218,-240,-224,-213,-189,-213,-179,-199,-183,-269,-306,-265,-187,-201,-233,-242,-213,-211,-236,-306,-343,-324,-325,-408,-347,-408,-328,-431,-629,-392,-475,-422,-727,-868,32767,32767,32767,-4129,-4141,-4148,-4141,-4153,-29969,-4137,-29969,-29979,-29981,-29981,-29982,-4137,-12847,-29984,-29982,-29967,-29987]} 1. e4 {[%emt 0:00:00]} c5 {[%emt 0:00:00]} 2. Nf3 {[%emt 0:00:00]} e6 {[%emt 0:00:30]} 3. c3 {[%emt 0:00:00]} Nf6 {[%emt 0:00:39]} 4. e5 {[%emt 0:00:09]} Nd5 {[%emt 0:00:20]} 5. d4 {[%emt 0:00:18]} cxd4 {[%emt 0:00:11]} 6. cxd4 {[%emt 0:00:12]} d6 {[%emt 0:00:22]} 7. Bc4 {[%emt 0:02:53]} Nc6 {[%emt 0:02:08]} 8. O-O {[%emt 0:01:11] LiveBook: 1961 Games} Be7 {[%emt 0:00:34]} 9. b3 {[%emt 0:04:24] B22: Sicilian: 2 c3} (9. Qe2 O-O 10. a3 Bd7 11. exd6 Bxd6 12. Nc3 Nce7 13. Ne4 Bc6 14. Ne5 Rc8 15. Rd1 Bb8 16. Ng5 Be8 17. Bd3 Nf6 18. Ngf3 Ned5 19. Bd2 a6 20. Rac1 Rxc1 21. Rxc1 Qb6 22. Nc4 Qd8 23. Nce5 Qb6 24. Nc4 Qd8 {½-½ (24) Vachier Lagrave,M (2789)-Caruana,F (2816) Leuven 2018}) 9... O-O {[%emt 0:04:03]} 10. Bb2 {[%emt 0:01:42]} Qc7 $146 {[%emt 0:04:02]} ({Predecessor:} 10... Na5 11. Bd3 b6 12. Nc3 Nxc3 13. Bxc3 Bb7 14. Qe2 Rc8 15. Bb2 Nc6 16. a3 dxe5 17. dxe5 {0-1 (60) Maric,M (2316)-Stankovic,M (2189) Vrnjacka Banja 1999}) 11. Nbd2 {[%emt 0:02:09]} dxe5 {[%emt 0:04:05]} 12. dxe5 {[%emt 0:00:32]} Rd8 {[%emt 0:00:28]} 13. Rc1 {[%emt 0:01:19]} a6 {[%emt 0:05:34]} 14. Qc2 {[%emt 0:06:43]} Ndb4 {[%emt 0:02:05]} 15. Qb1 {[%emt 0:00:40]} b5 {[%emt 0:01:05]} 16. Be2 {[%emt 0:01:58]} Bb7 {[%emt 0:03:00]} 17. Rfd1 {[%emt 0:06:26]} Qb6 {[%emt 0:05:42]} 18. Ne4 {[%emt 0:05:15]} h6 {[%emt 0:01:30]} 19. h3 {[%emt 0:01:02]} Nd5 {[%emt 0:00:38]} 20. Nh2 {[%emt 0:08:57]} Rac8 $2 {[%emt 0:14:35]} (20... Nf4 $17 21. Bf3 Nb4) 21. Ng4 {[%emt 0:01:46]} (21. Bf3 $11) 21... Nf4 {[%emt 0:14:02]} 22. Bf1 {[%emt 0:01:27]} Nb4 {[%emt 0:10:24]} 23. Rxc8 {[%emt 0:07:21]} Bxc8 {[%emt 0:01:01]} 24. Nef6+ {[%emt 0:14:02]} gxf6 {[%emt 0:00:36]} 25. Nxh6+ {[%emt 0:00:31]} Kg7 {[%emt 0:01:16]} 26. exf6+ {[%emt 0:02:10]} Bxf6 {[%emt 0:00:51]} 27. Ng4 {[%emt 0:02:39]} e5 {[%emt 0:07:21]} 28. Nxe5 $2 {[%emt 0:01:26]} (28. Nxf6 $11 {und Weiss muss sich keine Sorgen machen.} Rxd1 {[#]} 29. Nh5+ $1 {[%mdl 512]} Nxh5 30. Qxd1) 28... Rxd1 {[%emt 0:00:44]} 29. Qxd1 {[%emt 0:00:19]} Ng6 {[%emt 0:00:42]} ({Weaker is} 29... Nxa2 30. Qd2 $11) 30. Nxg6 {[%emt 0:03:09]} fxg6 {[%emt 0:00:40]} ({Black should play} 30... Bxb2 $19 31. Nf4 Be5 32. Nh5+ Kf8) 31. Bc1 $2 {[%emt 0:02:22]} (31. Bxf6+ $17 {ist wohl besser.} Qxf6 32. a4) 31... Qd4 {[%emt 0:01:50]} (31... Nxa2 $142 32. Be3 Nc3) 32. Qf3 {[%emt 0:03:19]} Nd5 {[%emt 0:01:45]} 33. Qe2 {[%emt 0:04:23]} Bd7 {[%emt 0:02:45]} 34. Qc2 {[%emt 0:00:48]} Qc3 {[%emt 0:05:14]} 35. Qd1 {[%emt 0:00:36]} Be6 {[%emt 0:00:19]} 36. Bd2 {[%emt 0:01:00]} Qa1 {[%emt 0:01:04]} 37. Qe2 {[%emt 0:00:22]} Qe5 {[%emt 0:01:56]} 38. Qf3 {[%emt 0:00:52]} Bg5 {[%emt 0:01:56]} (38... Qb2 $19 39. Qe2 Bf7) 39. Ba5 {[%emt 0:01:16]} (39. Bxg5 $17 {was called for.} Qxg5 40. a4) 39... Bf7 {[%emt 0:01:12]} 40. Qd3 {[%emt 0:00:00]} Bf6 {[%emt 0:00:00]} 41. Bd2 {[%emt 0:05:07]} Nc3 {[%emt 0:05:22]} 42. Qc2 {[%emt 0:02:42]} Bd5 {[%emt 0:01:02]} 43. Bd3 {[%emt 0:03:46]} Be4 {[%emt 0:01:47]} 44. Bxe4 {[%emt 0:01:10]} Qxe4 {[%emt 0:00:11]} 45. Qxe4 {[%emt 0:00:54]} Nxe4 {[%emt 0:00:02]} 46. Be3 {[%emt 0:00:37]} Nc3 {[%emt 0:00:02]} 47. a3 {[%emt 0:00:17]} Nb1 {[%emt 0:00:24]} 48. a4 {[%emt 0:00:25]} bxa4 {[%emt 0:00:04]} 49. bxa4 {[%emt 0:00:09]} Nc3 {[%emt 0:00:14]} 50. a5 {[%emt 0:00:22]} Nd5 {[%emt 0:00:06]} 51. Bc5 {[%emt 0:02:18]} Bd8 {[%emt 0:00:19]} 52. Kf1 {[%emt 0:00:29]} Bxa5 {[%emt 0:00:05]} 53. Ke2 {[%emt 0:00:13]} Kf6 {[%emt 0:00:49]} 54. h4 {[%emt 0:01:00]} Kf5 {[%emt 0:01:30]} 55. f3 {[%emt 0:00:45]} Nf4+ {[%emt 0:00:46]} 56. Kf1 {[%emt 0:00:08]} Bd8 {[%emt 0:00:42]} 57. g4+ {[%emt 0:00:20]} Ke5 {[%emt 0:00:37]} 58. h5 {[%emt 0:00:36]} gxh5 {[%emt 0:00:06]} 59. gxh5 {[%emt 0:00:04]} Nxh5 {[%emt 0:00:06]} 60. Ke2 {[%emt 0:00:09]} Kd5 {[%emt 0:00:35]} 61. Ba3 {[%emt 0:00:20]} a5 {[%emt 0:00:44]} 62. Kd3 {[%emt 0:00:21]} Bf6 {[%emt 0:00:07]} 63. Kc2 {[%emt 0:01:39]} Kc4 {[%emt 0:00:46]} 64. Bc1 {[%emt 0:01:14]} Be5 {[%emt 0:00:33]} 65. Bg5 {[%emt 0:01:05]} a4 {[%emt 0:00:22]} 66. Be7 {[%emt 0:00:13]} Nf4 {[%emt 0:00:08]} 67. Ba3 {[%emt 0:00:55]} Nd3 {[%emt 0:00:08]} 68. f4 {[%emt 0:01:18]} Bxf4 {[%emt 0:00:10]} 69. Be7 {[%emt 0:01:21]} Be3 {[%emt 0:00:10]} 70. Bf6 {[%emt 0:01:44]} a3 {[%emt 0:00:13]} 71. Bc3 {[%emt 0:01:52]} a2 {[%emt 0:00:32]} 72. Bb2 {[%emt 0:02:24]} Bd4 {[%emt 0:00:08]} 73. Ba1 {[%emt 0:00:43]} Bxa1 {[%emt 0:00:11]} 74. Kd2 {[%emt 0:00:10]} Bd4 {[%emt 0:00:05]} 75. Ke2 {[%emt 0:00:13]} Ne5 {[%emt 0:00:06]} 76. Kd2 {[%emt 0:00:07]} a1=Q {[%emt 0:00:06]} 77. Ke2 {[%emt 0:00:05]} Qb2+ {[%emt 0:00:07]} 78. Kd1 {[%emt 0:00:04]} Kd3 {[%emt 0:00:10]} 0-1

[Event "FIDE WCCC U10 2018"]
[Site "Santiago de Compostela"]
[Date "2018.11.04"]
[Round "1"]
[White "Ribstein, Orel"]
[Black "Vagman, Roy"]
[Result "1-0"]
[ECO "D72"]
[WhiteElo "1494"]
[BlackElo "1970"]
[Annotator "NA RC"]
[PlyCount "95"]
[EventDate "2018.11.04"]
[EventType "swiss"]
[EventCountry "ESP"]
[SourceTitle "playchess.com"]
[Source "ChessBase"]
[SourceQuality "1"]
[TimeControl "40/5400+30:1800+30"]

{[%evp 17,86,69,80,32767,32767,32767,32767,16,19,32767,32767,32767,32767,32767,32767,32767,32767,32767,32767,32767,86,83,87,87,206,121,212,32767,32767,184,171,230,299,133,32767,32,54,22,29,22,22,20,22,25,406,434,520,528,585,756,711,770,1660,1626,1741,2322,5289,12461,29975,29984,29984,29986,29986,29983,5762,437,5377,29981,29989,29986,29992]} 1. d4 Nf6 2. c4 {[%emt 0:00:00]} g6 {[%emt 0:00:12]} 3. g3 Bg7 {[%emt 0:00:51]} 4. Bg2 {[%emt 0:00:10]} d5 {[%emt 0:00:48]} 5. cxd5 {[%emt 0:00:10]} Nxd5 {[%emt 0:00:16]} 6. e4 {[%emt 0:00:23]} Nb6 {[%emt 0:00:41]} 7. Ne2 {[%emt 0:00:09]} O-O {[%emt 0:01:22]} 8. O-O {[%emt 0:00:15]} Re8 {[%emt 0:02:38] D72: Fianchetto Grünfeld: 5 cxd5 Nxd5 6 e4 Nb6 (without Nf3)} (8... c5 9. d5 e6 10. Nec3 Na6 11. Na3 exd5 12. exd5 Bf5 13. Be3 Qd7 14. Qb3 Bd4 15. Rad1 Bxe3 16. fxe3 Nb4 17. e4 Bg4 18. Rd2 Nc6 {1-0 (56) Plat,V (2543)-Paravyan,D (2638) Pardubice 2018}) 9. Nbc3 {[%emt 0:04:12]} Nc6 {[%emt 0:01:55]} 10. d5 {[%emt 0:00:09]} Na5 {[%emt 0:00:15]} 11. Qe1 $146 {[%emt 0:02:48]} ({Predecessor:} 11. b3 c6 12. Be3 cxd5 13. exd5 Bd7 14. Bd4 Bf8 15. Nf4 Nc8 16. b4 {½-½ (72) Lemos,D (2371)-Hungaski,R (2366) Pinamar 2006}) 11... c6 {[%emt 0:02:35]} 12. dxc6 {[%emt 0:00:23]} Nxc6 {[%emt 0:00:20]} 13. b3 {[%emt 0:07:45]} Nb4 {[%emt 0:09:24]} 14. Qd1 {[%emt 0:10:04]} Qc7 {[%emt 0:01:16]} 15. Bf4 {[%emt 0:00:35]} e5 {[%emt 0:00:56]} 16. Be3 {[%emt 0:00:11]} Be6 {[%emt 0:11:05]} 17. Rc1 {[%emt 0:24:37]} Qe7 {[%emt 0:02:02]} 18. Nd5 {[%emt 0:01:29]} Bxd5 {[%emt 0:05:06]} (18... N4xd5 $11 {remains equal.} 19. exd5 Red8) 19. exd5 {[%emt 0:01:31]} Rac8 {[%emt 0:01:32]} 20. Qd2 {[%emt 0:03:13]} Qd6 {[%emt 0:10:45]} (20... Bf8 $16) 21. Rfd1 {[%emt 0:08:35]} Na6 {[%emt 0:02:27]} (21... e4 $16) 22. Nc3 {[%emt 0:13:53]} Qd7 {[%emt 0:11:10]} 23. Bf1 {[%emt 0:09:23]} Red8 {[%emt 0:06:06]} 24. d6 {[%emt 0:04:16]} Nc5 {[%emt 0:04:02]} 25. Bb5 {[%emt 0:06:22]} ({Better is} 25. b4 $18 Na6 26. Bb5) 25... Qe6 {[%emt 0:01:51]} 26. Na4 $2 {[%emt 0:01:09]} (26. b4 $18 Ncd7 27. Ne4) 26... Ncxa4 {[%emt 0:00:25]} 27. bxa4 {[%emt 0:00:11]} Rxc1 {[%emt 0:00:49]} 28. Qxc1 {[%emt 0:01:35]} Rxd6 {[%emt 0:13:42]} 29. Rxd6 {[%emt 0:00:01]} Qxd6 {[%emt 0:00:21]} 30. a5 {[%emt 0:00:08]} Nd7 $2 {[%emt 0:00:55]} (30... Nd5 $11) 31. Qc8+ {[%emt 0:00:16]} Nf8 {[%emt 0:00:09]} 32. Qxb7 {[%emt 0:00:29]} Qb4 {[%emt 0:00:34]} 33. a6 {[%emt 0:00:34]} Ne6 {[%emt 0:01:57]} 34. Bxa7 {[%emt 0:01:19]} e4 {[%emt 0:01:56]} 35. Be3 {[%emt 0:00:35]} Bd4 {[%emt 0:02:19]} 36. Bxd4 {[%emt 0:00:16]} Nxd4 {[%emt 0:01:22]} 37. a7 {[%emt 0:00:38]} Nf3+ {[%emt 0:00:47]} 38. Kg2 {[%emt 0:00:12]} Ne1+ {[%emt 0:01:15]} 39. Kh3 {[%emt 0:00:50]} Nf3 {[%emt 0:00:44]} 40. a8=Q+ {[%emt 0:00:00]} Kg7 {[%emt 0:00:00]} 41. Bf1 {[%emt 0:00:33]} (41. Qe8 $142 Ng5+ 42. Kg2 Qc3 43. Be2 Qf6 44. Qbb8 Kh6 45. Qf4 Kg7 {[#]} 46. Qh8+ $1 {[%mdl 512]} Kxh8 47. Qxf6+ Kg8 48. Qxg5) 41... Qc5 {[%emt 0:00:46]} (41... Qd2 $142 42. Qxe4 Ng5+ 43. Kg2 Nxe4 44. Qxe4 Qxa2 45. Qd4+ f6) 42. Qb2+ {[%emt 0:00:40]} Kh6 {[%emt 0:00:07]} 43. Kg2 {[%emt 0:09:18]} Qf5 {[%emt 0:01:43]} 44. Qf8+ {[%emt 0:01:32]} Kh5 {[%emt 0:00:10]} 45. Qb5 {[%emt 0:00:11]} Ne5 {[%emt 0:00:42]} 46. Be2+ {[%emt 0:00:09]} Kg5 {[%emt 0:00:02]} 47. h4+ {[%emt 0:00:29]} Kf6 48. Qb6+ {[%emt 0:00:37]} 1-0

[Event "FIDE WCCC U10 2018"]
[Site "Santiago de Compostela"]
[Date "2018.11.04"]
[Round "1"]
[White "Baryschyk, Sergey"]
[Black "Chandra, Anand Rishi"]
[Result "1-0"]
[ECO "D01"]
[WhiteElo "1468"]
[BlackElo "1953"]
[Annotator "NA"]
[PlyCount "71"]
[EventDate "2018.11.04"]
[EventType "swiss"]
[EventCountry "ESP"]
[SourceTitle "playchess.com"]
[Source "ChessBase"]
[SourceQuality "1"]
[TimeControl "40/5400+30:1800+30"]

1. d4 d5 {[%emt 0:00:00]} 2. Nc3 {[%emt 0:00:00]} Nf6 {[%emt 0:00:00]} 3. Bg5 {[%emt 0:00:00]} Nbd7 {[%emt 0:00:00]} 4. f3 {[%emt 0:00:29]} e6 {[%emt 0:02:55]} 5. e4 {[%emt 0:00:07]} dxe4 {[%emt 0:00:06]} 6. fxe4 {[%emt 0:00:05]} h6 {D01: Veresov Opening} 7. Bf4 {[%emt 0:02:11]} Bb4 {[%emt 0:04:10]} 8. Bd3 {[%emt 0:03:56]} c5 {[%emt 0:04:36]} 9. a3 {[%emt 0:03:07]} Ba5 {[%emt 0:02:00]} 10. b4 {[%emt 0:01:20]} cxb4 {[%emt 0:01:51]} 11. Nb5 {[%emt 0:01:10]} b3+ $146 {[%emt 0:04:02]} ({Predecessor:} 11... bxa3+ 12. c3 O-O 13. Rxa3 {0-1 (21) Portisch,G (2295)-Szabo,Z (2405) Hungary 1998}) 12. c3 {[%emt 0:00:31]} b2 {[%emt 0:02:28]} 13. Rb1 {[%emt 0:00:12]} a6 {[%emt 0:01:08]} 14. Nd6+ {[%emt 0:00:29]} Kf8 {[%emt 0:00:09]} 15. Ne2 {[%emt 0:03:29]} Nh5 {[%emt 0:01:18]} 16. O-O {[%emt 0:02:00]} f6 {[%emt 0:16:01]} 17. g4 {[%emt 0:09:18]} Nxf4 {[%emt 0:00:32]} 18. Nxf4 {[%emt 0:00:13]} Kg8 {[%emt 0:12:05]} 19. Ng6 $2 {[%emt 0:07:12]} (19. e5 $18) 19... Rh7 $2 {[%emt 0:03:37]} (19... Bxc3 $17 {and life is bright.} 20. Kg2 Bxd4) 20. e5 {[%emt 0:01:45]} Bxc3 {[%emt 0:00:45]} 21. Ne7+ {[%emt 0:01:30]} (21. Be4 $142) 21... Qxe7 {[%emt 0:00:13]} 22. Bxh7+ {[%emt 0:00:05]} Kh8 {[%emt 0:00:50] [#]} 23. Qd3 {[%emt 0:02:13]} (23. Bc2 $1 $18) 23... Bxd4+ $1 {[%emt 0:02:13]} 24. Qxd4 {[%emt 0:00:16]} Kxh7 {[%emt 0:00:16]} 25. exf6 {[%emt 0:00:48]} ({Much worse is} 25. Rxb2 Nxe5 26. Rc2 Bd7 $15) 25... Nxf6 {[%emt 0:00:40]} 26. Rxb2 {[%emt 0:00:53]} e5 {[%emt 0:01:02]} 27. Re2 {[%emt 0:02:17]} Nxg4 $2 {[%emt 0:05:47]} (27... Bxg4 $11 {and Black is okay.} 28. Rxe5 Qc7) 28. Nxc8 {[%emt 0:06:38]} Qg5 {[%emt 0:01:54]} 29. Qe4+ {[%emt 0:03:28]} Kg8 {[%emt 0:00:41]} 30. Ne7+ $18 {[%emt 0:01:05]} Kh8 {[%emt 0:00:07]} 31. Qg2 {[%emt 0:04:59]} h5 {[%emt 0:00:40]} 32. h3 {[%emt 0:01:17]} Qxe7 {[%emt 0:00:13]} 33. hxg4 {[%emt 0:00:10]} Qc5+ {[%emt 0:00:12]} 34. Kh1 {[%emt 0:02:25]} Qxa3 {[%emt 0:00:40]} 35. Rxe5 {[%emt 0:00:24]} hxg4 {[%emt 0:01:29]} 36. Rh5+ {[%emt 0:00:52]} 1-0